{"text_format":"3","workbook":"xlsx","n_sheets":13,"sheets":["เริ่ม","พื้นฐาน","บทนำสู่ฟังก์ชัน","ค่าเฉลี่ย","MIN & MAX","วันที่และเวลา","การรวมข้อความและตัวเลข","คำสั่ง IF","VLOOKUP","ฟังก์ชันเงื่อนไข","ตัวช่วยสร้างฟังก์ชัน","ข้อผิดพลาดของสูตร","เรียนรู้เพิ่มเติม"],"not_rendered":{"images":32,"defined_names":21},"read":"whole","date_system":"1900"}

{"sheet":"เริ่ม","index":0,"n_rows":4,"n_cols":1,"rows_kept":4}
[]
["เริ่มต้นใช้งานสูตร"]
["ในเพียงไม่กี่ขั้นตอน คุณจะสามารถเริ่มต้นและใช้งานการสร้างสูตรและฟังก์ชันใน Excel แอปสเปรดชีตที่มีประสิทธิภาพสูงสุดของโลก"]
["ย้อนกลับสู่ด้านบนโดยการกด CTRL+HOME เมื่อต้องการเริ่มต้นการนำเสนอ ให้กด CTRL+PAGE DOWN"]

{"sheet":"พื้นฐาน","index":1,"n_rows":43,"n_cols":10,"rows_kept":43}
["พื้นฐาน: คำนวณทางคณิตศาสตร์ด้วย Excel"]
["คุณสามารถบวก ลบ คูณ และหารใน Excel ได้โดยไม่ต้องใช้ฟังก์ชันที่มีอยู่ภายใน คุณจะต้องใช้ตัวดำเนินการพื้นฐานบางอย่าง: +, -, *, / สูตรทั้งหมดจะเริ่มต้นด้วยเครื่องหมายเท่ากับ (=)\n",null,"จำนวนที่จะใช้:",null,"การดำเนินการ:","สูตร:","คำตอบ:"]
["เมื่อต้องการบวก ให้เลือกเซลล์ F3 พิมพ์ =C3+C4 แล้วกด Enter \n",null,1,null,"การบวก (+) ",null,{"$f":"C3+C4","v":3}]
["เมื่อต้องการลบ ให้เลือกเซลล์ F4 พิมพ์ =C3-C4 แล้วกด Enter ",null,2,null,"การลบ (-) ",null,{"$f":"C3-C4","v":-1}]
["เมื่อต้องการคูณ ให้เลือกเซลล์ F5 พิมพ์ =C3*C4 แล้วกด Enter\n",{"$nulls":3},"การคูณ (*) ",null,{"$f":"C3*C4","v":2}]
["เมื่อต้องการหาร ให้เลือกเซลล์ F6 พิมพ์ =C3/C4 แล้วกด Enter\n",{"$nulls":3},"การหาร (/) ",null,{"$f":"C3/C4","v":0.5}]
["ลองทำดังนี้: เปลี่ยนตัวเลขในเซลล์ C3 และ C4 และดูผลลัพธ์ของสูตรเปลี่ยนแปลงโดยอัตโนมัติ",{"$nulls":3},"ยกกำลัง (^) ",null,{"$f":"C3^C4","v":1}]
["เครดิตเพิ่มเติม: คุณสามารถเพิ่มค่ายกกำลังโดยใช้สัญลักษณ์ Carat (^) เช่น =A1^A2 ใส่ด้วย Shift+6 ในเซลล์ F7 ให้ใส่ =C3^C4"]
["ค้นหารายละเอียดเพิ่มเติม"]
["ขั้นตอนถัดไป"]
["ข้อมูลเพิ่มเติมเกี่ยวกับสูตร เซลล์ และช่วง"]
["Excel ถูกสร้างขึ้นมาจากเซลล์ที่ถูกจัดกลุ่มเป็นแถวและคอลัมน์ แถวจะเป็นลำดับเลข และคอลัมน์จะเป็นลำดับตัวอักษร มีแถวมากกว่า 1 ล้านแถวและคอลัมน์มากกว่า 16,000 คอลัมน์ และคุณสามารถใส่สูตรในเซลล์ใดก็ได้ \n"]
["สูตรสามารถมีการอ้างอิงเซลล์ ช่วงของการอ้างอิงเซลล์ ตัวดำเนินการ และค่าคงที่ ต่อไปนี้คือตัวอย่างทั้งหมดของสูตร:\n\n=A1+B1\n=10+20\n=SUM(A1:A10)\n\n"]
["คุณจะสังเกตเห็นว่าในตัวอย่างที่สามของเราทางด้านบน ตัวใช้ฟังก์ชัน SUM ฟังก์ชันคือคำสั่งที่สร้างไว้ล่วงหน้าที่นำค่าไปคำนวณด้วยวิธีบางอย่าง แล้วส่งกลับผลลัพธ์ ตัวอย่างเช่น ฟังก์ชัน SUM จะใช้การอ้างอิงเซลล์หรือช่วงที่คุณระบุ และหาผลรวม ในตัวอย่างนี้ จะใช้เซลล์ A1 ถึง A10 และรวมผลรวม Excel มีฟังก์ชันมากกว่า 400 ฟังก์ชัน ซึ่งคุณสามารถสำรวจได้บนแท็บสูตร\n"]
["สูตรที่มีฟังก์ชันจะเริ่มต้นด้วยเครื่องหมายเท่ากับ และมีชื่อฟังก์ชันตามด้วยอาร์กิวเมนต์ (ค่าที่ฟังก์ชันใช้เพื่อคำนวณ) ที่อยู่ในวงเล็บ \n"]
["คุณสามารถยืนยันสูตรได้โดยการกด Enter เมื่อคุณทำดังกล่าว สูตรจะคำนวณ และผลลัพธ์จะแสดงในเซลล์ เมื่อต้องการดูสูตร คุณสามารถดูที่แถบสูตรใต้ Ribbon หรือกด F2 เพื่อเข้าสู่โหมดแก้ไข ที่คุณจะเห็นสูตรในเซลล์ กด Enter อีกครั้งเพื่อสร้างสูตรและคำนวณผลลัพธ์ให้เสร็จสมบูรณ์\n\n"]
["คำอธิบายสูตรบางส่วน"]
["=10+20 คือสูตรที่ 10 และ 20 เป็นค่าคงที่ และเครื่องหมาย + เป็นตัวดำเนินการ"]
["=SUM(A1:A10) คือสูตร โดย SUM คือชื่อฟังก์ชัน วงเล็บเปิดและวงเล็บปิดมีอาร์กิวเมนต์ของสูตร และ A1:A10 คือช่วงเซลล์สำหรับฟังก์ชัน"]
["=SUM(A1:A10,C1:C10) คือสูตร โดย SUM คือชื่อฟังก์ชัน วงเล็บเปิดและวงเล็บปิดมีอาร์กิวเมนต์ของสูตร และ A1:A10,C1:C10 คือช่วงเซลล์สำหรับฟังก์ชันที่ถูกคั่นด้วยเครื่องหมายจุลภาค"]
["ดีใจที่ได้ทราบ: ค่าคงที่คือค่าที่คุณใส่ในเซลล์หรือสูตร ขณะที่ =10+20 อาจคำนวณด้วยวิธีเดียวกับ =A1+B1 แต่ค่าคงที่ไม่ใช่หลักปฏิบัติที่ดี ทำไม เนื่องจากคุณไม่สามารถเห็นค่าคงที่โดยไม่เลือกเซลล์และค้นหา ซึ่งทำให้ยากต่อการเปลี่ยนแปลงในภายหลัง และจะง่ายกว่ามากที่จะใส่ค่าคงที่ในเซลล์ ซึ่งปรับค่าเหล่านั้นได้ง่าย และอ้างอิงในสูตรของคุณ\n\nตัวอย่างเช่น: เลือกเซลล์สีเหลืองที่ 12 ทางด้านล่าง คุณจะเห็นว่าเราใช้ฟังก์ชัน SUM กับช่วงของเซลล์ เราไม่ได้พิมพ์ “4” หรือ “8” ลงในสูตร \n"]
["ก่อนหน้า"]
["ถัดไป"]
["ข้อมูลเพิ่มเติมบนเว็บ"]
["ใช้ Excel เป็นเครื่องคิดเลข"]
["ภาพรวมของสูตรใน Excel"]
["ฟังก์ชัน Excel (ตามประเภท) "]
["ฟังก์ชัน Excel (ตามตัวอักษร) "]
["การฝึกอบรมออนไลน์ฟรีสำหรับ Excel"]
{"$rows_empty":10}
[{"$nulls":9},"ค่า"]
[{"$nulls":9},4]
[{"$nulls":9},8]
[{"$nulls":9},{"$f":"SUM(J41:J42)","v":12}]

{"sheet":"บทนำสู่ฟังก์ชัน","index":2,"n_rows":51,"n_cols":7,"rows_kept":51}
["บทนำสู่ฟังก์ชัน"]
["ฟังก์ชันจะช่วยให้คุณสามารถทำสิ่งต่างๆ ได้ เช่น การคำนวณทางคณิตศาสตร์ ค้นหาค่า หรือแม้แต่คำนวณวันที่และเวลา มาลองใช้วิธีอื่นๆ ในการเพิ่มค่าด้วยฟังก์ชัน SUM",null,"ผลไม้","จำนวน",null,"เนื้อสัตว์","จำนวน"]
["ภายใต้คอลัมน์ จำนวน สำหรับ ผลไม้ (เซลล์ D7) ให้ใส่ =SUM(D3:D6) หรือพิมพ์ =SUM( แล้วเลือกช่วงนั้นด้วยเมาส์ แล้วกด Enter ซึ่งจะรวมค่าในเซลล์ D3, D4, D5 และ D6 คำตอบของคุณควรเป็น 170\n",null,"แอปเปิ้ล",50,null,"เนื้อวัว",50]
["ในตอนนี้ มาลองใช้ AutoSum เลือกเซลล์ภายใต้คอลัมน์ เนื้อสัตว์ (เซลล์ G7) แล้วไปที่ สูตร > AutoSum > แล้วเลือก SUM คุณจะเห็น Excel จะใส่สูตรให้คุณ กด Enter เพื่อยืนยัน ฟีเจอร์ AutoSum มีฟังก์ชันทั่วไปทั้งหมด\n",null,"ส้ม",20,null,"เนื้อไก่",30]
["นี่คือแป้นพิมพ์ลัดที่เป็นระเบียบ เลือกเซลล์ D15 กด Alt = แล้วกด Enter ซึ่งจะใส่ SUM ให้คุณโดยอัตโนมัติ",null,"กล้วย",60,null,"เนื้อหมู",10]
["ค้นหารายละเอียดเพิ่มเติม",null,"มะนาว",40,null,"เนื้อปลา",50]
["เครดิตเพิ่มเติม\nลองใช้ฟังก์ชัน COUNT โดยใช้วิธีใดก็ได้ที่คุณเคยลองใช้แล้ว ฟังก์ชัน COUNT จะนับจำนวนของเซลล์ในช่วงที่มีตัวเลข",null,"SUM > ",{"$f":"SUM(D3:D6)","v":170},null,"SUM > "]
["ขั้นตอนถัดไป"]
["ข้อมูลเพิ่มเติมเกี่ยวกับฟังก์ชัน",null,"รายการ","จำนวนเงิน",null,"รายการ","จำนวน"]
["ไปที่แท็บ สูตร และเรียกดูผ่าน ไลบรารีฟังก์ชัน ที่แสดงฟังก์ชันตามประเภท เช่น ข้อความ วันที่และเวลา เป็นต้น แทรกฟังก์ชัน จะช่วยให้คุณสามารถค้นหาฟังก์ชันตามชื่อ และเปิดใช้ตัวช่วยสร้างฟังก์ชันที่สามารถช่วยให้คุณสร้างสูตรของคุณได้ \n\nเมื่อคุณเริ่มพิมพ์ชื่อฟังก์ชันหลังจากที่คุณกด = Excel จะเปิดใช้ Intellisense ซึ่งจะแสดงฟังก์ชันทั้งหมดที่ขึ้นต้นด้วยตัวอักษรที่คุณพิมพ์ เมื่อคุณค้นพบสิ่งที่คุณต้องการ ให้กด Tab แล้ว Excel จะตั้งชื่อฟังก์ชันและใส่วงเล็บเปิดให้คุณโดยอัตโนมัติ ซึ่งยังจะแสดงอาร์กิวเมนต์ทั้งที่ไม่จำเป็นและจำเป็น \n\n\n\nในตอนนี้ มาดูที่การวิเคราะห์ฟังก์ชันบางอย่าง ฟังก์ชัน SUM มีโครงสร้างดังนี้:",null,"ขนมปัง",50,null,"ขนมปัง",50]
["ถ้าฟังก์ชัน SUM สามารถพูดได้ จะกล่าวว่า ให้ส่งผลรวมของค่าทั้งหมดในเซลล์ D35 ถึง D38 และค่าทั้งหมดจากคอลัมน์ H SUM คือชื่อฟังก์ชัน D35:D38 คืออาร์กิวเมนต์ชองช่วงแรก ซึ่งมักจะเป็นสิ่งจำเป็น และ H:H คืออาร์กิวเมนต์ของช่วงที่สอง ซึ่งคั่นด้วยเครื่องหมายจุลภาค ในตอนนี้ ให้ลองใช้ฟังก์ชันที่ไม่จำเป็นต้องมีอาร์กิวเมนต์\n",null,"โดนัท",100,null,"โดนัท",100]
["ฟังก์ชัน TODAY ส่งกลับวันที่ของวันนี้ ซึ่งจะอัปเดตโดยอัตโนมัติเมื่อ Excel คำนวณใหม่",null,"คุกกี้",40,null,"คุกกี้",40]
["ลองดูสิ่งนี้\nเลือกเซลล์เหล่านี้ จากนั้น ในมุมขวาล่างของหน้าต่าง Excel ให้ค้นหา SUM: 170 ในแถบด้านล่าง ซึ่งเรียกว่า แถบสถานะ และเป็นอีกวิธีหนึ่งในการค้นหาผลรวมและรายละเอียดอื่นๆ เกี่ยวกับเซลล์หรือส่วนที่เลือกอย่างรวดเร็ว ",null,"เค้ก",50,null,"เค้ก",50]
["รายละเอียดสำคัญ\nดับเบิลคลิกที่เซลล์นี้ คุณจะสังเกตเห็น 100 ไปยังส่วนท้าย แม้ว่าจะสามารถใส่ตัวเลขในสูตรที่มีลักษณะนี้ เราไม่แนะนำให้ทำเช่นนั้นเว้นแต่ว่าจำเป็นจริงๆ ซึ่งถูกเรียกว่าค่าคงที่ และมักจะลืมว่ามีค่าอยู่ที่นั่น เราขอแนะนำให้อ้างอิงไปยังเซลล์อื่นแทน เช่น เซลล์ F51 ด้วยวิธีนั้น จะเห็นได้ง่ายและไม่ถูกซ่อนภายในสูตร ",null,"พาย",20,null,"พาย",20]
["ข้อมูลเพิ่มเติมบนเว็บ",null,"SUM > ",null,null,"COUNT >"]
["ข้อมูลทั้งหมดเกี่ยวกับฟังก์ชัน SUM"]
["ใช้ AutoSum เพื่อรวมตัวเลข"]
["ข้อมูลทั้งหมดเกี่ยวกับฟังก์ชัน COUNT"]
["การฝึกอบรมออนไลน์ฟรีสำหรับ Excel"]
["กลับสู่ด้านบน"]
["ขั้นตอนถัดไป"]
{"$rows_empty":12}
[null,null,"ผลไม้","จำนวนเงิน"]
[null,null,"แอปเปิ้ล",50]
[null,null,"ส้ม",20]
[null,null,"กล้วย",60]
[null,null,"มะนาว",40]
[null,null,"SUM > ",{"$f":"SUM(D35:D38)","v":170}]
[]
[]
[]
[]
[null,null,"รายการ","จำนวน"]
[null,null,"รถยนต์",20]
[null,null,"รถบรรทุก",10]
[null,null,"จักรยาน",10]
[null,null,"สเก็ต",40]
[]
[{"$nulls":3},"ผลรวม:",null,"ค่าเพิ่มเติม","ผลรวมใหม่"]
[{"$nulls":3},{"$f":"SUM(D45:D48,100)","v":180},null,100,{"$f":"SUM(D45:D48,F51)","v":180}]

{"sheet":"ค่าเฉลี่ย","index":3,"n_rows":15,"n_cols":7,"rows_kept":15}
["ฟังก์ชัน AVERAGE"]
["ใช้ฟังก์ชัน AVERAGE เพื่อดูค่าเฉลี่ยของตัวเลขในช่วงของเซลล์",null,"ผลไม้","จำนวน",null,"เนื้อสัตว์","จำนวน"]
["เลือกเซลล์ D7 แล้วใช้ AutoSum เพื่อเพิ่มฟังก์ชัน AVERAGE",null,"แอปเปิ้ล",50,null,"เนื้อวัว",50]
["ในตอนนี้ ให้เลือกเซลล์ G7 แล้วใส่ฟังก์ชัน AVERAGE โดยการพิมพ์ =AVERAGE(G3:G6) ",null,"ส้ม",20,null,"เนื้อไก่",30]
["ในเซลล์ D15 คุณสามารถใช้ AutoSum หรือพิมพ์เพื่อใส่ฟังก์ชัน AVERAGE อื่น ",null,"กล้วย",60,null,"เนื้อหมู",10]
["ลองดูสิ่งนี้\nเลือกช่วงตัวเลขใดก็ได้ แล้วดูค่าเฉลี่ยได้ทันทีในแถบสถานะ \n",null,"มะนาว",40,null,"เนื้อปลา",50]
["เปิดใช้งานแผ่นงานก่อนหน้า",null,"AVERAGE >",null,null,"AVERAGE >"]
["ไปยังแผ่นงานถัดไป"]
["เครดิตเพิ่มเติม\nลองใช้ MEDIAN หรือ MODE ที่นี่ \n\nMEDIAN จะแสดงค่าที่อยู่ตรงกลางของชุดข้อมูล ในขณะที่ \nMODE จะแสดงค่าที่ปรากฏบ่อยที่สุด\n",null,"รายการ","จำนวน",null,"รายการ","จำนวน"]
["ลิงก์สำหรับข้อมูลเพิ่มเติมบนเว็บ",null,"ขนมปัง",50,null,"ขนมปัง",50]
["เลือกเพื่อเรียนรู้ทั้งหมดเกี่ยวกับฟังก์ชัน AVERAGE บนเว็บ",null,"โดนัท",100,null,"โดนัท",100]
["เลือกเพื่อเรียนรู้ทั้งหมดเกี่ยวกับฟังก์ชัน MEDIAN บนเว็บ",null,"คุกกี้",40,null,"คุกกี้",40]
["เลือกเพื่อเรียนรู้ทั้งหมดเกี่ยวกับฟังก์ชัน MODE บนเว็บ",null,"เค้ก",50,null,"เค้ก",50]
["เลือกเพื่อเรียนรู้เกี่ยวกับการฝึกอบรมออนไลน์ฟรีบนเว็บสำหรับ Excel",null,"พาย",20,null,"พาย",20]
[null,null,"AVERAGE >"]

{"sheet":"MIN & MAX","index":4,"n_rows":15,"n_cols":7,"rows_kept":15}
["ฟังก์ชัน MIN และ MAX"]
["ใช้ฟังก์ชัน MIN เพื่อดูจำนวนต่ำสุดในช่วงของเซลล์",null,"ผลไม้","จำนวน",null,"เนื้อสัตว์","จำนวน"]
["ใช้ฟังก์ชัน MAX เพื่อดูจำนวนสูงสุดในช่วงของเซลล์",null,"แอปเปิ้ล",50,null,"เนื้อวัว",50]
["เลือกเซลล์ D7 แล้วใช้ตัวช่วยสร้าง AutoSum ในการเพิ่มฟังก์ชัน MIN\n",null,"ส้ม",20,null,"เนื้อไก่",30]
["ในตอนนี้ ให้เลือกเซลล์ G7 แล้วใส่ฟังก์ชัน MAX โดยการพิมพ์ =MAX(G3:G6)\n",null,"กล้วย",60,null,"เนื้อหมู",10]
["ในเซลล์ D15 คุณสามารถใช้ตัวช่วยสร้าง AutoSum หรือพิมพ์เพื่อใส่ฟังก์ชัน MIX หรือ MAX \n",null,"มะนาว",40,null,"เนื้อปลา",50]
["ข้อมูลเพิ่มเติมบนเว็บ\n",null,"MIN >",null,null,"MAX >"]
["ข้อมูลทั้งหมดเกี่ยวกับฟังก์ชัน MIN"]
["ข้อมูลทั้งหมดเกี่ยวกับฟังก์ชัน MAX",null,"รายการ","จำนวน",null,"รายการ","จำนวน"]
["การฝึกอบรมออนไลน์ฟรีสำหรับ Excel",null,"ขนมปัง",50,null,"ขนมปัง",50]
["ดีใจที่ได้ทราบ\nคุณสามารถใช้ MIN หรือ MAX กับหลายช่วง หรือค่าเพื่อแสดงค่าที่มากกว่าหรือน้อยกว่าค่าเหล่านั้น เช่น =MIN(A1:A10,B1:B10) หรือ =MAX(A1:A10,B1) โดย B1 มีค่าเริ่มต้น เช่น 10 ในกรณีที่สูตรจะไม่ส่งกลับผลลัพธ์ต่ำกว่า 10\n",null,"โดนัท",100,null,"โดนัท",100]
[null,null,"คุกกี้",40,null,"คุกกี้",40]
[null,null,"เค้ก",50,null,"เค้ก",50]
[null,null,"พาย",20,null,"พาย",20]
[null,null,"MIN หรือ MAX >",{"$nulls":3},{"$f":"MIN(G10:G14,10)","v":10}]

{"sheet":"วันที่และเวลา","index":5,"n_rows":47,"n_cols":6,"rows_kept":47,"merged":[[4,2,4,3],[26,2,26,3],[30,2,30,3],[44,2,44,3]]}
["ฟังก์ชันวันที่"]
["Excel สามารถแสดงวันที่ปัจจุบัน โดยยึดตามการตั้งค่าภูมิภาคของคอมพิวเตอร์ของคุณ คุณยังสามารถเพิ่มและลบ วันที่ ได้"]
["ลองใช้ฟังก์ชัน TODAY ซึ่งจะแสดงวันที่ของวันนี้ ฟังก์ชันเหล่านี้คือฟังก์ชันที่ทำงานตลอดเวลา หรือเปลี่ยนแปลงอย่างรวดเร็ว ดังนั้น เมื่อคุณเปิดเวิร์กบุ๊กในวันพรุ่งนี้ วันที่จะเป็นวันที่ของวันพรุ่งนี้ ใส่ =TODAY() ในเซลล์ D6 \n"]
["ลบวันที่ - ใส่วันเกิดถัดไปของคุณในรูปแบบ D/M/YY ในเซลล์ D7 และดู Excel บอกคุณบอกจำนวนวันที่จะถึงโดยใช้ =D7-D6 ในเซลล์ D8\n"]
["เพิ่มวันที่ - สมมติว่าคุณต้องการทราบวันครบกำหนดของใบแจ้งหนี้ หรือเมื่อคุณต้องการส่งคืนหนังสือของห้องสมุด คุณสามารถเพิ่มวันไปยังวันที่เพื่อทดลองใช้ ในเซลล์ D10 ให้ใส่จำนวนวันแบบสุ่ม ในเซลล์ D11 เราได้เพิ่ม =D6+D10 เพื่อคำนวณวันครบกำหนดตั้งแต่วันนี้\n",null,"ฟังก์ชันวันที่"]
["ดีใจที่ได้ทราบ\nExcel จะเก็บวันที่และเวลาตามจำนวนวันตั้งแต่วันที่ 1 มกราคม 1900 เวลาจะถูกเก็บไว้ในส่วนที่เป็นเศษส่วนของวันตามนาที ดังนั้น 1/1/2017 12:30:00 จะถูกจัดเก็บเป็น 42736.5208 ถ้าเวลาหรือวันที่แสดงเป็นตัวเลขดังกล่าว คุณสามารถกด Ctrl+1 > ตัวเลข > เลือกรูปแบบวันที่หรือเวลา ",null,"วันที่ของวันนี้:",null,null,{"$f":"IF(D6=TODAY(),\"คุณทำสำเร็จแล้ว!\",\"\")","v":""}]
["รายละเอียดสำคัญ\nถ้าคุณไม่ต้องการให้ Excel แสดงจำนวนติดลบ เนื่องจากคุณยังไม่ได้ใส่วันเกิดของคุณ คุณสามารถใช้ฟังก์ชัน IF ดังนี้: =IF(D7=\"\",\"\",D7-D6) ซึ่งระบุว่า \"ถ้า D7 ไม่เท่ากับอะไรเลย ไม่ต้องแสดงอะไร มิฉะนั้น ให้แสดง D7 ลบ D6\"\n",null,"วันเกิดของคุณ:"]
["ฟังก์ชันเวลา",null,"จำนวนวันจนกว่าจะถึงวันเกิดของคุณ:",{"$f":"D7-D6","v":0}]
["Excel สามารถแสดงเวลาปัจจุบัน โดยยึดตามการตั้งค่าภูมิภาคของคอมพิวเตอร์ของคุณ คุณยังสามารถเพิ่มและลบ เวลา ได้ ตัวอย่างเช่น คุณอาจต้องการติดตามจำนวนชั่วโมงที่พนักงานทำงานในแต่ละสัปดาห์ และคำนวณค่าจ้างและค่าจ้างล่วงเวลาของพวกเขา\n"]
["ในเซลล์ D28 ให้ใส่ =NOW() ซึ่งจะแสดงเวลาปัจจุบันและจะอัปเดตทุกครั้งที่ Excel คำนวณ ถ้าคุณต้องการเปลี่ยนรูปแบบ เวลา คุณสามารถไปที่ Ctrl+1 > ตัวเลข > เวลา > เลือกรูปแบบที่คุณต้องการ\n",null,"ระยะเวลาที่ไม่ต้องชำระเงิน:"]
["เพิ่มชั่วโมงระหว่างเวลา - ในเซลล์ D36 เราได้ใส่ =((D35-D32)-(D34-D33))*24 ซึ่งจะคำนวณเวลาเข้างานและเวลาออกงานของบุคคล แล้วลบด้วยเวลาที่พวกเขาใช้พักกลางวัน *24 ที่ส่วนท้ายของสูตรจะแปลงส่วนที่เป็นเศษส่วนของวันที่ Excel เห็นให้เป็นชั่วโมง คุณต้องจัดรูปแบบเซลล์เป็นตัวเลข เมื่อต้องการทำเช่นนั้น ให้ไปที่หน้าแรก > รูปแบบ > เซลล์ (Ctrl + 1) > ตัวเลข > ตัวเลขทศนิยม 2 ตำแหน่ง\n\n",null,"ใบแจ้งหนี้ครบกำหนดวันที่:",{"$f":"D6+D10","v":"00:00:00"}]
["ถ้าสูตรนี้พูดได้จะกล่าวว่า “นำเวลาเลิกงานมาลบออกจากเวลาเข้างาน จากนั้น ลบเวลาออกไปพักกลางวัน/กลับจากพักกลางวัน แล้วคูณตัวเลขเหล่านั้นด้วย 24 เพื่อแปลงเวลาเศษส่วนของ Excel ให้เป็นชั่วโมง” หรือ =((เวลาเลิกงาน - เวลาเข้างาน)-(เวลากลับจากพักกลางวัน - เวลาออกไปพักกลางวัน))*24"]
["ก่อนหน้า"]
["ถัดไป"]
["ข้อมูลเพิ่มเติมบนเว็บ"]
["ข้อมูลทั้งหมดเกี่ยวกับฟังก์ชัน TODAY"]
["ข้อมูลทั้งหมดเกี่ยวกับฟังก์ชัน NOW"]
["ข้อมูลทั้งหมดเกี่ยวกับฟังก์ชัน DATE"]
["การฝึกอบรมออนไลน์ฟรีสำหรับ Excel"]
{"$rows_empty":7}
[null,null,"ฟังก์ชันเวลา"]
[null,null,"เวลาปัจจุบัน:"]
[]
[]
[null,null,"ชั่วโมงทำงานรายวัน"]
[null,null,"เวลาเข้างาน:","08:00:00"]
[null,null,"เวลาออกไปพักกลางวัน:","12:00:00"]
[null,null,"เวลากลับจากพักกลางวัน:","13:00:00"]
[null,null,"เวลาเลิกงาน:","17:00:00"]
[null,null,"ชั่วโมงทั้งหมด:",{"$f":"((D35-D32)-(D34-D33))*24","v":8.000000000000002}]
{"$rows_empty":8}
[null,null,"วันและเวลาคงที่"]
[null,null,"วันที่:","2017-09-27"]
[null,null,"เวลา:","08:52:00"]

{"sheet":"การรวมข้อความและตัวเลข","index":6,"n_rows":37,"n_cols":6,"rows_kept":37,"merged":[[26,2,26,3],[30,2,30,3],[34,2,34,3]]}
["การรวมข้อความจากเซลล์อื่น"]
["มีหลายครั้งที่คุณต้องการรวมข้อความที่อยู่ในเซลล์อื่นใน Excel ตัวอย่างนี้เป็นตัวอย่างทั่วไป ซึ่งคุณจะมีชื่อและนามสกุล และต้องการรวมเป็นชื่อ นามสกุล หรือชื่อเต็ม โชคดี Excel ช่วยให้เราสามารถทำเช่นนั้นได้ด้วยเครื่องหมายและ (&) ซึ่งคุณสามารถใส่ได้ด้วย Shift+7\n",null,"ชื่อ","นามสกุล","นามสกุล, ชื่อ","ชื่อเต็ม"]
["ในเซลล์ E3 ให้ใส่ =D3&C3 เพื่อรวมนามสกุลและชื่อ \n",null,"Nancy","Smith",{"$f":"D3&\", \"&C3","v":"Smith, Nancy"},{"$f":"C3&\" \"&D3","v":"Nancy Smith"}]
["SmithNancy ดูเหมือนจะไม่ถูกต้อง เราจำเป็นต้องเพิ่มเครื่องหมายจุลภาคและช่องว่าง เมื่อต้องการทำเช่นนั้น เราจะใช้เครื่องหมายอัญประกาศเพื่อสร้างสตริงข้อความใหม่ ในครั้งนี้ ให้ใส่ =D3&\", \"&C3 ส่วน &\", \"& ช่วยให้เราสามารถรวมเครื่องหมายจุลภาคและช่องว่างกับข้อความในเซลล์\n",null,"Andy","เหนือ"]
["เมื่อต้องการสร้างชื่อเต็ม เราจะรวมชื่อและนามสกุล แต่ใช้ช่องว่างโดยไม่มีเครื่องหมายจุลภาค ใน F3 ให้ใส่ =C3&\" \"&D3\n",null,"Jan","Kotas"]
["ค้นหารายละเอียดเพิ่มเติม",null,"Mariya","Jones"]
["ถัดไป",null,"Steven","Thorpe"]
["การใช้ข้อความและตัวเลขรวมกัน",null,"Michael","Neipper"]
["ในตอนนี้ เราจะใช้ & เพื่อรวมข้อความและตัวเลข ไม่ใช่เพียงข้อความและข้อความ\n\nดูที่เซลล์ C28:D29 ดูลักษณะของวันที่และเวลาที่อยู่ในเซลล์แยกกันหรือไม่ คุณสามารถรวมเข้าด้วยกันได้ด้วยเครื่องหมาย & เหมือนกับที่คุณเห็นในเซลล์ C32:C33 แต่ดูเหมือนไม่ถูกต้อง ใช่ไหม น่าเสียดาย Excel ไม่สามารถทราบได้ว่าคุณต้องการจัดรูปแบบตัวเลขอย่างไร ดังนั้น จึงแบ่งตามรูปแบบพื้นฐาน ซึ่งก็คือวันที่แบบอนุกรมในกรณีนี้ เราต้องการบอก Excel เกี่ยวกับวิธีการจัดรูปแบบส่วนตัวเลขของสูตร ดังนั้น จึงแสดงตามวิธีที่คุณต้องการในสตริงข้อความผลลัพธ์ คุณสามารถทำได้ด้วยฟังก์ชัน TEXT และโค้ดรูปแบบ",null,"Robert","Zare"]
["ในเซลล์ C36 ให้ใส่ =C28&\" \"&TEXT(D28,\"D/M/YYYY\") D/M/YYYY คือโค้ดรูปแบบ US สำหรับ วัน/เดือน/ปี เช่น 25/9/2560\n",null,"Yvonne","McKay"]
["ในเซลล์ C37 ให้ใส่ =C29&\" \"&TEXT(D29,\"H:MM:SS\") H:MM คือโค้ดรูปแบบ US สำหรับ ชั่วโมง:นาที เช่น 13:30\n\n"]
["ลองดูสิ่งนี้\nสูตร โดยเฉพาะสูตรที่ขนาดใหญ่ อาจอ่านได้ยากในบางครั้ง แต่คุณสามารถแบ่งส่วนด้วยช่องว่าง ดังนี้:\n\n=C28 & \" \" & TEXT(D28,\"MM/DD/YYYY\")"]
["คุ้มค่าที่จะสำรวจ\nถ้าคุณไม่ทราบว่าจะใช้โค้ดรูปแบบใด คุณสามารถใช้ Ctrl+1 > ตัวเลข เพื่อจัดรูปแบบเซลล์ใดก็ได้ด้วยวิธีที่คุณต้องการ แล้วเลือกตัวเลือก กำหนดเอง คุณสามารถคัดลอกโค้ดรูปแบบที่แสดงกลับไปยังสูตรของคุณ"]
["ข้อมูลเพิ่มเติมบนเว็บ"]
["ข้อมูลทั้งหมดเกี่ยวกับฟังก์ชัน TEXT"]
["รวมข้อความและตัวเลข"]
["การฝึกอบรมออนไลน์ฟรีสำหรับ Excel"]
{"$rows_empty":9}
[null,null,"ใช้ข้อความและตัวเลข"]
[null,null,"วันที่ของวันนี้:",{"$f":"TODAY()","v":"2019-10-10"}]
[null,null,"เวลาปัจจุบัน:",{"$f":"NOW()","v":43748.73180069445}]
[]
[null,null,"การรวมข้อความและตัวเลข"]
[null,null,{"$f":"C28&\" \"&D28","v":"วันที่ของวันนี้: 43748"}]
[null,null,{"$f":"C29&\" \"&D29","v":"เวลาปัจจุบัน: 43748.7318006944"}]
[]
[null,null,"การจัดรูปแบบข้อความและตัวเลข"]
[null,null,{"$f":"C28 &\" \"& TEXT(D28,\"D/M/YYYY\")","v":"วันที่ของวันนี้: 10/10/2019"}]
[null,null,{"$f":"C29&\" \"&TEXT(D29,\"H:MM:SS\")","v":"เวลาปัจจุบัน: 17:33:48"}]

{"sheet":"คำสั่ง IF","index":7,"n_rows":37,"n_cols":6,"rows_kept":37,"merged":[[7,2,7,3]]}
["คำสั่ง IF"]
["คำสั่ง IF จะช่วยให้คุณสามารถเปรียบเทียบเชิงตรรกะระหว่างเงื่อนไขได้ โดยทั่วไป คำสั่ง IF จะระบุว่าถ้ามีเงื่อนไขหนึ่งเป็นจริง ให้ทำบางอย่าง มิฉะนั้น ให้ทำอีกอย่าง สูตรสามารถส่งกลับข้อความ ค่า หรือแม้แต่การคำนวณ"]
["ในเซลล์ D9 ให้ใส่ =IF(C9=”แอปเปิ้ล”,TRUE,FALSE) คำตอบที่ถูกต้องคือ TRUE \n"]
["คัดลอก D9 ไปยัง D10 คำตอบที่นี่ควรเป็น FALSE เนื่องจาก ส้ม ไม่ใช่ แอปเปิ้ล\n"]
["ลองตัวอย่างอื่นโดยการดูที่สูตรในเซลล์ D12 เราจะให้คุณเริ่มต้นด้วย =IF(C12<100,”น้อยกว่า 100”,”มากกว่าหรือเท่ากับ 100”) จะเกิดอะไรขึ้นถ้าคุณใส่ตัวเลขที่มากกว่า 100 ในเซลล์ C12\n"]
["รายละเอียดสำคัญ\nTRUE และ FALSE ไม่เหมือนกับคำอื่นๆ ในสูตร Excel เนื่องจากไม่จำเป็นต้องอยู่ในเครื่องหมายอัญประกาศ และ Excel จะทำให้เป็นตัวอักษรพิมพ์ใหญ่โดยอัตโนมัติ ตัวเลขไม่จำเป็นต้องอยู่ในเครื่องหมายอัญประกาศ ข้อความทั่วไป เช่น ใช่ หรือ ไม่ใช่ ต้องอยู่ในเครื่องหมายอัญประกาศ ดังนี้: \n=IF(C9=\"แอปเปิ้ล\",\"ใช่\",\"ไม่ใช่\")"]
["ค้นหารายละเอียดเพิ่มเติม"]
["ถัดไป",null,"คำสั่ง IF"]
["คำสั่ง IF ที่มีฟังก์ชันอื่น",null,"แอปเปิ้ล"]
["คำสั่ง IF ยังสามารถบังคับให้คำนวณเพิ่มเติมได้ ถ้าเป็นไปตามเงื่อนไข ต่อจากนี้ เราจะประเมินเซลล์เพื่อดูว่าควรเพิ่ม ภาษีการขาย หรือไม่ และคำนวณถ้าเงื่อนไขเป็นจริง\n",null,"ส้ม"]
["ในเซลล์ F33 เราได้ใส่ =IF(E33=\"ใช่\",F31*ภาษีการขาย,0) ซึ่งเราตั้งค่า ภาษีการขาย เป็นช่วงที่มีชื่อที่มีค่า 0.0825 สูตรของเราระบุว่าเซลล์ E33 เท่ากับ ใช่ จากนั้น คูณเซลล์ F31 ด้วย ภาษีการขาย มิฉะนั้น ให้ส่งกลับ 0\n\nลองเปลี่ยน ใช่ เป็น ไม่ใช่ ในเซลล์ E33 เพื่อดูการเปลี่ยนแปลงการคำนวณ"]
["จากนั้น เราจะเพิ่มคำสั่ง IF เพื่อคำนวณค่าจัดส่ง ถ้าจำเป็น ในเซลล์ F35 คุณจะเห็น =IF(E35=\"ใช่\",SUM(D28:D29)*1.25,0) ซึ่งระบุว่า “ถ้าเซลล์ E35 เป็น ใช่” ให้นำผลรวมของคอลัมน์ จำนวน ในตารางทางด้านบน คูณด้วย 1.25 มิฉะนั้น ให้ส่งกลับ 0\n",null,50,{"$f":"IF(C12<100,\"น้อยกว่า 100\",\"มากกว่าหรือเท่ากับ 100\")","v":"น้อยกว่า 100"}]
["จากนั้น ให้เปลี่ยน 1.25 ในสูตรในเซลล์ F35 เป็น “ค่าจัดส่ง” เมื่อคุณเริ่มพิมพ์ การแก้ไขอัตโนมัติของ Excel ควรค้นหาให้คุณ เมื่อเสร็จแล้ว ให้กด Tab เพื่อใส่ นี่คือช่วงที่มีชื่อ และเราใส่จาก สูตร > กำหนดชื่อ เพียงเท่านี้ ถ้าคุณต้องการเปลี่ยนค่าจัดส่งของคุณ คุณเพียงต้องทำในที่เดียว และคุณสามารถใช้ชื่อ ค่าจัดส่ง ที่ใดก็ได้ในเวิร์กบุ๊ก\n\n"]
["ดีใจที่ได้ทราบ\nเมื่อคุณสร้างสูตร Excel จะใส่เส้นขอบสีล้อมรอบช่วงที่อ้างอิงในสูตรโดยอัตโนมัติ และช่วงที่สอดคล้องกันในสูตรจะเป็นสีเดียวกัน คุณสามารถดูสิ่งนี้ได้ ถ้าคุณเลือกเซลล์ F33 แล้วกด F2 เพื่อแก้ไขสูตร"]
["เคล็ดลับจากผู้เชี่ยวชาญ\nช่วงที่มีชื่อจะช่วยให้คุณระบุคำหรือค่าได้ในที่เดียว แล้วนำไปใช้ใหม่ได้ตลอดทั้งเวิร์กบุ๊ก คุณสามารถดูช่วงที่มีชื่อทั้งหมดในเวิร์กบุ๊กนี้ได้โดยการไปที่ สูตร > ตัวจัดการชื่อ คลิกที่นี่เพื่อเรียนรู้เพิ่มเติม\n"]
["ก่อนหน้า"]
["ถัดไป"]
["ข้อมูลเพิ่มเติมบนเว็บ"]
["ข้อมูลทั้งหมดเกี่ยวกับฟังก์ชัน IF"]
["ข้อมูลทั้งหมดเกี่ยวกับฟังก์ชัน IFS"]
["คำสั่ง IF ขั้นสูง"]
["การฝึกอบรมออนไลน์ฟรีสำหรับ Excel"]
[]
[]
[]
[]
[null,null,"รายการ","จำนวน","ค่าใช้จ่าย","ผลรวม"]
[null,null,"วิดเจ็ต",2,{"v":9.760711585683554,"d":"฿9.76"},{"$f":"'คำสั่ง IF'!$E$28:$E$29*'คำสั่ง IF'!$D$28:$D$29","v":{"v":19.521423171367108,"d":"฿19.52"}}]
[null,null,"Doohickey",3,{"v":3.4189202461080024,"d":"฿3.42"},{"$f":"'คำสั่ง IF'!$E$28:$E$29*'คำสั่ง IF'!$D$28:$D$29","v":{"v":10.256760738324008,"d":"฿10.26"}}]
[]
[{"$nulls":3},"ผลรวมย่อย",{"$f":"SUM('คำสั่ง IF'!$E$28:$E$29)","v":{"v":13.179631831791557,"d":"฿13.18"}},{"$f":"SUM('คำสั่ง IF'!F28:F29)","v":{"v":29.778183909691116,"d":"฿29.78"}}]
[]
[{"$nulls":3},"มีภาษีการขายหรือไม่","ใช่",{"$f":"IF(E33=\"ใช่\",F31*ภาษีการขาย,0)","v":{"v":2.456700172549517,"d":"฿2.46"}}]
[]
[{"$nulls":3},"มีค่าจัดส่งหรือไม่","ใช่",{"$f":"IF(E35=\"ใช่\",SUM(D28:D29)*1.25,0)","v":{"v":6.25,"d":"฿6.25"}}]
[]
[{"$nulls":3},"ผลรวม",null,{"$f":"SUM(F33,F31,F35)","v":{"v":38.48488408224063,"d":"฿38.48"}}]

{"sheet":"VLOOKUP","index":8,"n_rows":43,"n_cols":7,"rows_kept":43}
["VLOOKUP"]
["VLOOKUP คือฟังก์ชันที่ใช้กันอย่างกว้างขวางใน Excel (และเป็นหนึ่งในฟังก์ชันที่เราโปรดปรานเช่นกัน!) VLOOKUP ช่วยให้คุณค้นหาค่าในคอลัมน์ทางด้านซ้าย แล้วส่งกลับข้อมูลในคอลัมน์อื่นทางด้านขวาถ้าพบค่าที่ตรงกัน VLOOKUP ระบุว่า:\n"]
["=VLOOKUP(A1,B:C,2,FALSE)"]
["คุณต้องการค้นหาอะไร"]
["ถ้าคุณพบแล้ว คุณต้องการใส่ค่าลงในคอลัมน์ทางขวากี่คอลัมน์"]
["คุณต้องการค้นหาที่ไหน"]
["คุณต้องการค้นหารายการที่ตรงกันทุกประการ หรือรายการที่ตรงกันโดยประมาณ"]
["ในเซลล์ D22 ให้ใส่ =VLOOKUP(C22,C17:D20,2,FALSE) คำตอบที่ถูกต้องสำหรับ แอปเปิ้ล คือ 50 VLOOKUP จะค้นหา แอปเปิ้ล เมื่อพบ จะไปที่คอลัมน์ทางด้านขวา แล้วส่งกลับจำนวน\n\n"]
["ในตอนนี้ ให้ลองใช้ด้วยตัวคุณเองในส่วน เนื้อสัตว์ ในเซลล์ G22 คุณควรสิ้นสุดด้วย =VLOOKUP(F22,F17:G20,2,FALSE)\n\n"]
["การทดลอง\nลองเลือกรายการอื่นจากรายการดรอปดาวน์ คุณจะเห็นเซลล์ผลลัพธ์ได้รับการอัปเดตทันทีด้วยค่าใหม่"]
["ค้นหารายละเอียดเพิ่มเติม"]
["ถัดไป"]
["VLOOKUP และ #N/A"]
["คุณจะพบสถานการณ์ที่ VLOOKUP ไม่สามารถค้นหาสิ่งที่คุณขอได้ และส่งกลับข้อผิด (#N/A) บ่อยครั้ง ในบางครั้ง อาจเป็นเพราะไม่มีการค้นหาค่า หรืออาจเป็นเพราะการอ้างอิงเซลล์ยังไม่มีค่า\n"]
["ถ้าคุณทราบว่ามีค่าค้นหาของคุณอยู่ แต่ต้องการซ่อนข้อผิดพลาดถ้าเซลล์ค้นหาว่างเปล่า คุณสามารถใช้คำสั่ง IF ในกรณีนี้ เราจะรวมสูตร VLOOKUP ของเราที่มีลักษณะเช่นเดียวกันนี้ในเซลล์ D43:\n\n=IF(C43=\"\",\"\",VLOOKUP(C43,C37:D41,2,FALSE))\n\nซึ่งระบุว่าถ้าเซลล์ C43 ไม่เท่ากับอะไรเลย (\"\") ไม่ต้องส่งกลับอะไรเลย มิฉะนั้น ให้ส่งกลับผลลัพธ์ของ VLOOKUP สังเกตวงเล็บปิดที่สองที่ส่วนท้ายของสูตร วงเล็บนี้จะปิดคำสั่ง IF\n"]
["ถ้าคุณไม่แน่ใจว่ามีค่าค้นหาของคุณอยู่หรือไม่ แต่คุณยังคงต้องการแก้ไขข้อผิดพลาด #N/A คุณสามารถใช้ฟังก์ชันตัวจัดการข้อผิดพลาดที่ชื่อว่า IFERROR ในเซลล์ G43: =IFERROR(VLOOKUP(F43,F37:G41,2,FALSE),\"\") IFERROR ระบุว่าถ้า VLOOKUP ส่งกลับผลลัพธ์ที่ถูกต้อง ให้แสดง มิฉะนั้น ไม่ต้องแสดงอะไรเลย (\"\") เราจะไม่แสดงอะไรเลยที่นี่ (“”) แต่คุณยังสามารถใช้ตัวเลข (0, 1, 2 เป็นต้น) หรือข้อความ เช่น “สูตรไม่ถูกต้อง”\n",null,"ผลไม้","จำนวน",null,"เนื้อสัตว์","จำนวน"]
["รายละเอียดสำคัญ\nIFERROR เป็นที่รู้จักว่าเป็นตัวจัดการข้อผิดพลาดของวงเล็บ ซึ่งหมายถึง จะจัดการข้อผิดพลาดที่เกิดขึ้นจากสูตรของคุณ ซึ่งอาจเกิดปัญหาได้ ถ้า Excel ส่งการแจ้งเตือนถึงคุณว่าสูตรที่ข้อผิดพลาดที่จำเป็นต้องแก้ไข\n\nกฎหลักคือต้องไม่เพิ่มตัวจัดการข้อผิดพลาดลงในสูตรของคุณ จนกว่าคุณจะแน่ใจว่าสูตรทำงานอย่างถูกต้อง",null,"แอปเปิ้ล",50,null,"เนื้อวัว",50]
["ก่อนหน้า",null,"ส้ม",20,null,"เนื้อไก่",30]
["ถัดไป",null,"กล้วย",60,null,"เนื้อหมู",10]
["ข้อมูลเพิ่มเติมบนเว็บ",null,"มะนาว",40,null,"เนื้อปลา",50]
["ข้อมูลทั้งหมดเกี่ยวกับฟังก์ชัน VLOOKUP"]
["ข้อมูลทั้งหมดเกี่ยวกับฟังก์ชัน INDEX/MATCH",null,"แอปเปิ้ล",null,null,"เนื้อหมู"]
["ข้อมูลทั้งหมดเกี่ยวกับฟังก์ชัน IFERROR"]
["ใช้ PivotTable เพื่อวิเคราะห์ข้อมูลในเวิร์กชีต"]
["การฝึกอบรมออนไลน์ฟรีสำหรับ Excel"]
{"$rows_empty":9}
[null,null,"ถ้าฟังก์ชัน SUM ในเซลล์ D42 สามารถพูดได้ อาจจะบอกว่า: รวมค่าในเซลล์ D38, D39, D40 และ D41"]
[null,null,"รายการ","จำนวน",null,"รายการ","จำนวน"]
[null,null,"ขนมปัง",50,null,"ขนมปัง",50]
[null,null,"โดนัท",100,null,"โดนัท",100]
[null,null,"คุกกี้",40,null,"คุกกี้",40]
[null,null,"เค้ก",50,null,"เค้ก",50]
[null,null,"พาย",20,null,"พาย",20]
[]
[{"$nulls":3},{"$f":"VLOOKUP(C43,C37:D41,2,FALSE)","v":{"$error":"#N/A"}},null,"ขนมอบ",{"$f":"IFERROR(VLOOKUP(F43,F37:G41,2,FALSE),\"\")","v":""}]

{"sheet":"ฟังก์ชันเงื่อนไข","index":9,"n_rows":123,"n_cols":34,"rows_kept":123}
["ฟังก์ชันเงื่อนไข - SUMIF"]
["ฟังก์ชันเงื่อนไขจะช่วยให้คุณสามารถรวม หาค่าเฉลี่ย นับ หรือหาค่าต่ำสุดหรือสูงสุดของช่วงตามเงื่อนไขที่กำหนด หรือเกณฑ์ที่คุณระบุ เช่น นอกจากผลไม้ในรายการแล้ว มีแอปเปิ้ลเท่าใด หรือ มีส้มจำนวนเท่าใดที่เป็นชนิด ฟลอริดา",null,"ผลไม้","จำนวน",null,"ผลไม้","ชนิด","จำนวน",{"$nulls":17},"ผลไม้",null,"แอปเปิ้ล",null,"ส้ม",null,"กล้วย",null,"มะนาว"]
["SUMIF จะช่วยให้คุณสามารถรวมในช่วงเดียวโดยยึดตามเกณฑ์เฉพาะที่คุณค้นหาในช่วงอื่น เช่น คุณมี แอปเปิ้ล จำนวนเท่าใด เลือกเซลล์ D17 แล้วพิมพ์ =SUMIF(C3:C14,C17,D3:D14) SUMIF มีโครงสร้างดังนี้:",null,"แอปเปิ้ล",50,null,"แอปเปิ้ล","ฟูจิ",50,{"$nulls":17},"แอปเปิ้ล",null,"ฟูจิ",null,"ฟลอริดา",null,"กล้วยหอม",null,"ขรุขระ"]
[{"$f":"SUMIF(C3:C14,C17,D3:D14)","v":150},null,"ส้ม",20,null,"ส้ม","ฟลอริดา",20,{"$nulls":17},"ส้ม",null,"แอปเปิ้ลฮันนี่คริปส์",null,"ส้มไร้เมล็ด",null,"กล้วยเล็บมือนาง",null,"ค้นพบแล้ว"]
["คุณต้องการค้นหาช่วงใด",null,"กล้วย",60,null,"กล้วย","กล้วยหอม",60,{"$nulls":17},"กล้วย"]
["คุณต้องการค้นหาค่า (ข้อความหรือตัวเลข) ใด",null,"มะนาว",40,null,"มะนาว","ขรุขระ",40,{"$nulls":17},"มะนาว"]
["สำหรับแต่ละรายการที่ตรงกันที่พบ คุณต้องการรวมช่วงใด",null,"แอปเปิ้ล",50,null,"แอปเปิ้ล","แอปเปิ้ลฮันนี่คริปส์",50]
["SUMIFS จะเหมือนกับฟังก์ชัน SUMIF แต่คุณสามารถใช้เกณฑ์หลายเกณฑ์ ในตัวอย่างนี้ คุณสามารถค้นหา ผลไม้ และ ชนิด แทนที่จะค้นหาเพียง ผลไม้ เลือกเซลล์ H17 แล้วพิมพ์ =SUMIFS(H3:H14,F3:F14,F17,G3:G14,G17) SUMIFS มีโครงสร้างดังนี้:\n",null,"ส้ม",20,null,"ส้ม","ส้มไร้เมล็ด",20]
["=SUMIFS(H3:H14,F3:F14,F17,G3:G14,G17)",null,"กล้วย",60,null,"กล้วย","กล้วยเล็บมือนาง",60]
["คุณต้องการรวมช่วงใด",null,"มะนาว",40,null,"มะนาว","ค้นพบแล้ว",40]
["นี่คือช่วงแรกที่ค้นหารายการที่ตรงกัน",null,"แอปเปิ้ล",50,null,"แอปเปิ้ล","แอปเปิ้ลฮันนี่คริปส์",50]
["นี่เป็นเกณฑ์สำหรับรายการที่ตรงกันรายการแรก",null,"ส้ม",20,null,"ส้ม","ส้มไร้เมล็ด",20]
["นี่คือช่วงที่สองที่ค้นหารายการที่ตรงกัน",null,"กล้วย",60,null,"กล้วย","กล้วยหอม",60]
["นี่เป็นเกณฑ์สำหรับรายการที่ตรงกันรายการที่สอง",null,"มะนาว",40,null,"มะนาว","ค้นพบแล้ว",40]
["เคล็ดลับจากผู้เชี่ยวชาญ\nเซลล์ ผลไม้ และ ชนิด แต่ละเซลล์มีรายการดรอปดาวน์ที่คุณสามารถเลือกผลไม้อื่นๆ ได้ ลอกใช้ และดูการอัปเดตสูตรโดยอัตโนมัติ"]
["ค้นหารายละเอียดเพิ่มเติม",null,"ผลไม้","SUMIF",null,"ผลไม้","ชนิด","SUMIFS"]
["ขั้นตอนถัดไป",null,"แอปเปิ้ล",null,null,"ส้ม","ฟลอริดา"]
["ฟังก์ชันเงื่อนไข - COUNTIF"]
["COUNTIF และ COUNTIFS ช่วยให้คุณสามารถนับค่าในช่วงโดยยึดตามเกณฑ์ที่คุณระบุ ซึ่งจะแตกต่างจากฟังก์ชัน IF และ IFS อื่นๆ เล็กน้อย โดยจะมีช่วงเกณฑ์ และเกณฑ์เท่านั้น ซึ่งจะไม่ประเมินหนึ่งช่วง แล้วดูในช่วงอื่นเพื่อสรุป"]
["เลือกเซลล์ D64 แล้วพิมพ์ =COUNTIF(C50:C61,C64) COUNTIF มีโครงสร้างดังนี้:"]
["=COUNTIF(C50:C61,C64)"]
["คุณต้องการค้นหาช่วงใด"]
["คุณต้องการค้นหาค่า (ข้อความหรือตัวเลข) ใด"]
["COUNTIFS จะเหมือนกับฟังก์ชัน SUMIF แต่คุณสามารถใช้เกณฑ์หลายเกณฑ์ ในตัวอย่างนี้ คุณสามารถค้นหา ผลไม้ และ ชนิด แทนที่จะค้นหาเพียง ผลไม้ เลือกเซลล์ H64 แล้วพิมพ์ =COUNTIFS(F50:F61,F64,G50:G61,G64) COUNTIFS มีโครงสร้างดังนี้:\n"]
["=COUNTIFS(F50:F61,F64,G50:G61,G64)"]
["นี่คือช่วงแรกที่นับ"]
["นี่เป็นเกณฑ์สำหรับรายการที่ตรงกันรายการแรก"]
["นี่คือช่วงที่สองที่นับ"]
["นี่เป็นเกณฑ์สำหรับรายการที่ตรงกันรายการที่สอง"]
["ค้นหารายละเอียดเพิ่มเติม"]
["ถัดไป"]
["ฟังก์ชันเงื่อนไขเพิ่มเติม"]
["คุณเห็น SUMIF, SUMIFS, COUNTIF และ COUNTIFS แล้ว ในตอนนี้ คุณสามารถลองใช้กับฟังก์ชันอื่นๆ เช่น AVERAGEIF/S, MAXIFS, MINIFS ซึ่งทั้งหมดจะมีโครงสร้างเหมือนกัน ดังนั้น เมื่อคุณเขียนหนึ่งสูตร คุณสามารถแทนที่ชื่อฟังก์ชันด้วยชื่อที่คุณต้องการ เราเขียนฟังก์ชันทั้งหมดที่คุณจำเป็นต้องใช้สำหรับเซลล์ E106 ดังนั้น คุณสามารถคัดลอก/วางฟังก์ชันเหล่านี้ หรือลองพิมพ์ด้วยตนเองเพื่อฝึกฝน\n\nSUMIF \t=SUMIF(C92:C103,C106,E92:E103) \nSUMIFS \t=SUMIFS(E92:E103,C92:C103,C106,D92:D103,D106) \nAVERAGEIF \t=AVERAGEIF(C92:C103,C106,E92:E103) \nAVERAGEIFS\t=AVERAGEIFS(E92:E103,C92:C103,C106,D92:D103,D106)\nCOUNTIF \t=COUNTIF(C92:C103,C106)\nCOUNTIFS \t=COUNTIFS(C92:C103,C106,D92:D103,D106) \nMAXIFS \t=MAXIFS(E92:E103,C92:C103,C106,D92:D103,D106)\nMINIFS \t=MINIFS(E92:E103,C92:C103,C106,D92:D103,D106)\n"]
["ค้นหารายละเอียดเพิ่มเติม"]
["ถัดไป"]
["SUMIF ที่มีอาร์กิวเมนต์ค่า"]
["นี่คือตัวอย่างของฟังก์ชัน SUMIF ที่ใช้เครื่องหมายมากกว่า (>) เพื่อค้นหาค่าทั้งหมดที่มากกว่าจำนวนที่ระบุ:"]
[{"$f":"SUMIF(D118:D122,\">=50\")","v":200}]
["รวมค่าบางค่าโดยยึดตามเกณฑ์นี้:"]
["....ดูในเซลล์เหล่านี้...\n "]
["...และถ้าค่ามากกว่า 50 ให้รวมค่า\n "]
["หมายเหตุ: ถ้าคุณพบว่าคุณสร้างสูตรเงื่อนไขจำนวนมาก คุณอาจพบว่า PivotTable เป็นโซลูชันที่ดีกว่า ดูบทความ PivotTable นี้สำหรับข้อมูลเพิ่มเติม"]
["ข้อมูลเพิ่มเติมบนเว็บ"]
["ข้อมูลทั้งหมดเกี่ยวกับฟังก์ชัน SUMIF"]
["ข้อมูลทั้งหมดเกี่ยวกับฟังก์ชัน SUMIFS"]
["ข้อมูลทั้งหมดเกี่ยวกับฟังก์ชัน COUNTIF"]
["ข้อมูลทั้งหมดเกี่ยวกับฟังก์ชัน COUNTIFS"]
["ทั้งหมดเกี่ยวกับฟังก์ชัน AVERAGEIF"]
["ข้อมูลทั้งหมดเกี่ยวกับฟังก์ชัน AVERAGEIFS",null,"ผลไม้","จำนวน",null,"ผลไม้","ชนิด","จำนวน"]
["ข้อมูลทั้งหมดเกี่ยวกับฟังก์ชัน MINIFS",null,"แอปเปิ้ล",50,null,"แอปเปิ้ล","ฟูจิ",50]
["ข้อมูลทั้งหมดเกี่ยวกับฟังก์ชัน MAXIFS",null,"ส้ม",20,null,"ส้ม","ฟลอริดา",20]
["สร้างรายการดรอปดาวน์",null,"กล้วย",60,null,"กล้วย","กล้วยหอม",60]
["การฝึกอบรมออนไลน์ฟรีสำหรับ Excel",null,"มะนาว",40,null,"มะนาว","ขรุขระ",40]
["กลับสู่ด้านบน",null,"แอปเปิ้ล",50,null,"แอปเปิ้ล","แอปเปิ้ลฮันนี่คริปส์",50]
["ถัดไป",null,"ส้ม",20,null,"ส้ม","ส้มไร้เมล็ด",20]
[null,null,"กล้วย",60,null,"กล้วย","กล้วยเล็บมือนาง",60]
[null,null,"มะนาว",40,null,"มะนาว","ค้นพบแล้ว",40]
[null,null,"แอปเปิ้ล",50,null,"แอปเปิ้ล","แอปเปิ้ลฮันนี่คริปส์",50]
[null,null,"ส้ม",20,null,"ส้ม","ส้มไร้เมล็ด",20]
[null,null,"กล้วย",60,null,"กล้วย","กล้วยหอม",60]
[null,null,"มะนาว",40,null,"มะนาว","ค้นพบแล้ว",40]
[]
[null,null,"ผลไม้","COUNTIF",null,"ผลไม้","ชนิด","COUNTIFS"]
[null,null,"แอปเปิ้ล",{"$f":"COUNTIF(C50:C61,C64)","v":3},null,"ส้ม","ฟลอริดา",{"$f":"COUNTIFS(F50:F61,F64,G50:G61,G64)","v":1}]
{"$rows_empty":26}
[null,null,"ผลไม้","ชนิด","จำนวน"]
[null,null,"แอปเปิ้ล","ฟูจิ",50]
[null,null,"ส้ม","ฟลอริดา",20]
[null,null,"กล้วย","กล้วยหอม",60]
[null,null,"มะนาว","ขรุขระ",40]
[null,null,"แอปเปิ้ล","แอปเปิ้ลฮันนี่คริปส์",50]
[null,null,"ส้ม","ส้มไร้เมล็ด",20]
[null,null,"กล้วย","กล้วยเล็บมือนาง",60]
[null,null,"มะนาว","ค้นพบแล้ว",40]
[null,null,"แอปเปิ้ล","แอปเปิ้ลฮันนี่คริปส์",50]
[null,null,"ส้ม","ส้มไร้เมล็ด",20]
[null,null,"กล้วย","กล้วยหอม",60]
[null,null,"มะนาว","ค้นพบแล้ว",40]
[]
[null,null,"ผลไม้","ชนิด","ลองทำดู:"]
[null,null,"มะนาว","ค้นพบแล้ว",{"$f":"AVERAGEIFS(E92:E103,C92:C103,C106,D92:D103,D106)","v":40}]
{"$rows_empty":10}
[null,null,"รายการ","จำนวน"]
[null,null,"ขนมปัง",50]
[null,null,"โดนัท",100]
[null,null,"คุกกี้",40]
[null,null,"เค้ก",50]
[null,null,"พาย",20]
[{"$nulls":3},{"$f":"SUMIF(D118:D122,\">=50\")","v":200}]

{"sheet":"ตัวช่วยสร้างฟังก์ชัน","index":10,"n_rows":14,"n_cols":4,"rows_kept":14}
["ให้ตัวช่วยสร้างฟังก์ชันช่วยคุณ"]
["ถ้าคุณทราบชื่อของฟังก์ชันที่คุณต้องการ แต่คุณไม่แน่ใจวิธีการสร้าง คุณสามารถใช้ตัวช่วยสร้างฟังก์ชันเพื่อช่วยเหลือคุณ\n"]
["เลือกเซลล์ D10 แล้วไปที่ สูตร > แทรกฟังก์ชัน > พิมพ์ VLOOKUP ใน ค้นหา ของกล่องค้นหาฟังก์ชัน แล้วกด ไป เมื่อคุณเห็น VLOOKUP ถูกเน้นอยู่ ให้คลิก ตกลง ทางด้านล่าง เมื่อคุณเลือกฟังก์ชันในรายการ Excel จะแสดงไวยากรณ์\n"]
["จากนั้น ให้ใส่อาร์กิวเมนต์ฟังก์ชันในกล่องข้อความที่เกี่ยวข้อง เมื่อคุณใส่แต่ละรายการ Excel จะประเมิน และแสดงผลลัพธ์ โดยมีผลลัพธ์สุดท้ายอยู่ทางด้านล่าง เมื่อคุณใส่แต่ละส่วน เกณฑ์สำหรับแต่ละอาร์กิวเมนต์จะแสดงอยู่ทางด้านล่างของฟอร์ม กด ตกลง เมื่อคุณทำเสร็จแล้ว และ Excel จะใส่สูตรให้คุณ\n\n\n",null,"ผลไม้","จำนวน"]
["ลองดูสิ่งนี้\nคุณควรสิ้นสุดด้วย =VLOOKUP(C10,C5:D8,2,FALSE)",null,"แอปเปิ้ล",50]
["ดีใจที่ได้ทราบ\nคุณสามารถพิมพ์การอ้างอิงเซลล์และช่วง หรือเลือกด้วยเมาส์ของคุณ",null,"ส้ม",20]
["ดีใจที่ได้ทราบ\nเมื่อคุณพิมพ์แต่ละส่วนของอาร์กิวเมนต์ คำอธิบายอาร์กิวเมนต์จะแสดงอยู่ทางด้านล่างของฟอร์ม เหนือผลลัพธ์ของสูตร\n",null,"กล้วย",60]
["ก่อนหน้า",null,"มะนาว",40]
["ถัดไป"]
["ข้อมูลเพิ่มเติมบนเว็บ",null,"แอปเปิ้ล",{"$f":"VLOOKUP(C10,C5:D8,2,FALSE)","v":50}]
["ภาพรวมของสูตรใน Excel"]
["ฟังก์ชัน Excel (ตามประเภท)"]
["ฟังก์ชัน Excel (ตามตัวอักษร)"]
["การฝึกอบรมออนไลน์ฟรีสำหรับ Excel"]

{"sheet":"ข้อผิดพลาดของสูตร","index":11,"n_rows":36,"n_cols":4,"rows_kept":36}
["การแก้ไขข้อผิดพลาดในสูตร"]
["ในบางเวลา คุณจะพบกับสูตรที่มีข้อผิดพลาด ซึ่ง Excel จะแสดงด้วย #ErrorName ข้อผิดพลาดอาจเป็นประโยชน์ เนื่องจาก จะบ่งชี้เมื่อมีบางอย่างทำงานไม่ถูกต้อง แต่ก็อาจแก้ไขได้ยาก โชคดี ยังมีตัวเลือกมากมายที่สามารถช่วยให้คุณติดตามแหล่งที่มาของข้อผิดพลาด และแก้ไขได้\n"]
["การตรวจสอบข้อผิดพลาด - ไปยังสูตร > การตรวจสอบข้อผิดพลาด ซึ่งจะโหลดกล่องโต้ตอบที่บอกสาเหตุทั่วไปของข้อผิดพลาดเฉพาะของคุณ ในเซลล์ D9 เกิดข้อผิดพลาด #N/A ขึ้น เนื่องจากไม่มีค่าที่ตรงกับ “แอปเปิ้ล1” คุณสามารถแก้ไขปัญหานี้ได้โดยใช้ค่าที่มีอยู่ แก้ไขข้อผิดพลาดด้วย IFERROR เพื่อละเว้นและทราบว่าข้อผิดพลาดจะหายไปเมื่อคุณใช้ค่าที่มีอยู่\n",null,"ผลไม้","จำนวน"]
["ถ้าคุณคลิก ช่วยเหลือเกี่ยวกับข้อผิดพลาดนี้ หัวข้อช่วยเหลือเกี่ยวกับข้อความแสดงข้อผิดพลาดนั้นจะเปิดขึ้น ถ้าคุณคลิก แสดงขั้นตอนการคำนวณ กล่องโต้ตอบประเมินสูตรจะโหลด\n",null,"แอปเปิ้ล",50]
["ทุกครั้งที่คุณคลิกประเมิน Excel จะประเมินสูตรทีละหนึ่งส่วน ซึ่งอาจไม่ได้ระบุสาเหตุของข้อผิดพลาด แต่จะชี้ตำแหน่งที่เกิดข้อผิดพลาด จากที่นั่น ให้ดูที่หัวข้อช่วยเหลือเพื่อคาดการณ์ว่ามีอะไรผิดพลาดกับสูตรของคุณ\n",null,"ส้ม",20]
["การทดลอง\nที่นี่มีอะไรผิดพลาด คำแนะนำ: เรากำลังพยายามหา SUM (ผลรวม) รายการทั้งหมด",null,"กล้วย",60]
["ดีใจที่ได้ทราบ\nการคลิก ตัวเลือก จะช่วยให้คุณสามารถตั้งกฎเมื่อข้อผิดพลาดใน Excel แสดงขึ้นหรือถูกละเว้น\n",null,"มะนาว",40]
["ก่อนหน้า"]
["ถัดไป",null,"แอปเปิ้ล1",{"$f":"VLOOKUP(C9,C3:D7,2,FALSE)","v":{"$error":"#N/A"}}]
["ข้อมูลเพิ่มเติมบนเว็บ"]
["ตรวจสอบข้อผิดพลาดในสูตร"]
["วิธีการหลีกเลี่ยงสูตรที่ใช้งานไม่ได้"]
["ประเมินสูตรที่ซ้อนกันทีละหนึ่งขั้น"]
["การฝึกอบรมออนไลน์ฟรีสำหรับ Excel"]
{"$rows_empty":15}
[null,null,"ผลไม้","จำนวน"]
[null,null,"แอปเปิ้ล",50]
[null,null,"ส้ม",20]
[null,null,"กล้วย",60]
[null,null,"มะนาว",40]
[]
[null,null,"ผลรวม",{"$f":"sume(D31:D34)","v":{"$error":"#NAME?"}}]

{"sheet":"เรียนรู้เพิ่มเติม","index":12,"n_rows":5,"n_cols":1,"rows_kept":5}
["มีข้อสงสัยเพิ่มเติมเกี่ยวกับ Excel หรือไม่"]
["กด ALT+ใ แล้วพิมพ์สิ่งที่ต้องการทราบ"]
["ใช้งานต่อไปเรื่อยๆ ยังมีสิ่งอื่นๆ อีกมากมายให้เรียนรู้ด้วย Excel:"]
["ชุมชน: ถามคำถามและติดต่อกับผู้ที่ชื่นชอบ Excel อื่นๆ\n"]
["มีอะไรใหม่อีกบ้าง\nผู้สมัครใช้งาน Office 365 จะได้รับการอัปเดตและฟีเจอร์ใหม่อย่างต่อเนื่อง\n\n"]